[Event "Early-Titled-Tuesday-Blitz-October-17-2023"]
[Site "Chess.com"]
[Date "2023.10.17"]
[Round "3"]
[White "Niilo1"]
[Black "CSB7"]
[Result "0-1"]
[WhiteElo "2299"]
[BlackElo "2738"]
[TimeControl "180+1"]
[EndTime "8:27:30 PDT"]
[Termination "CSB7 won by resignation"]

1. e4 {[%clk 0:02:58.1]} 1... d6 {[%clk 0:02:59]} 2. d4 {[%clk 0:02:56.9]} 2...
Nf6 {[%clk 0:02:59.3]} 3. Nc3 {[%clk 0:02:57.2]} 3... g6 {[%clk 0:02:59]} 4. Be3
{[%clk 0:02:57.5]} 4... a6 {[%clk 0:02:56.2]} 5. a4 {[%clk 0:02:57]} 5... Bg7
{[%clk 0:02:54.9]} 6. h3 {[%clk 0:02:56.3]} 6... O-O {[%clk 0:02:53.7]} 7. g4
{[%clk 0:02:56.4]} 7... c5 {[%clk 0:02:50]} 8. e5 {[%clk 0:02:31.1]} 8... Nfd7
{[%clk 0:02:45.9]} 9. f4 {[%clk 0:02:19.2]} 9... cxd4 {[%clk 0:02:36]} 10. Bxd4
{[%clk 0:02:12]} 10... Nc6 {[%clk 0:02:33.3]} 11. Bg2 {[%clk 0:01:58]} 11...
Nxd4 {[%clk 0:02:30.6]} 12. Qxd4 {[%clk 0:01:58.9]} 12... dxe5 {[%clk
0:02:30.4]} 13. Qb4 {[%clk 0:01:52.8]} 13... exf4 {[%clk 0:02:21.8]} 14. Nge2
{[%clk 0:01:53]} 14... Qb6 {[%clk 0:02:20.1]} 15. Qxb6 {[%clk 0:01:48.4]} 15...
Nxb6 {[%clk 0:02:21]} 16. Nxf4 {[%clk 0:01:48.8]} 16... Nc4 {[%clk 0:02:18.8]}
17. O-O-O {[%clk 0:01:47.2]} 17... Bh6 {[%clk 0:02:18.4]} 18. Rd4 {[%clk
0:01:03]} 18... Ne3 {[%clk 0:02:14.5]} 19. Kb1 {[%clk 0:00:14.3]} 19... e5
{[%clk 0:02:10.5]} 20. Rb4 {[%clk 0:00:14.7]} 20... Bxf4 {[%clk 0:02:07.6]} 21.
Be4 {[%clk 0:00:09.9]} 21... Rb8 {[%clk 0:02:03.5]} 22. h4 {[%clk 0:00:09.1]}
22... Bxg4 {[%clk 0:02:01.2]} 23. Rg1 {[%clk 0:00:08.1]} 23... b6 {[%clk
0:01:54.7]} 24. Nd5 {[%clk 0:00:08]} 24... Nxd5 {[%clk 0:01:54.3]} 25. Bxd5
{[%clk 0:00:08.9]} 25... Be6 {[%clk 0:01:53.8]} 26. Bc6 {[%clk 0:00:05.8]} 26...
h5 {[%clk 0:01:52.3]} 27. Bf3 {[%clk 0:00:05]} 27... Kh7 {[%clk 0:01:52]} 28.
Re4 {[%clk 0:00:03.7]} 28... b5 {[%clk 0:01:50.2]} 29. axb5 {[%clk 0:00:03.9]}
29... axb5 {[%clk 0:01:51.1]} 0-1

[Event "Early-Titled-Tuesday-Blitz-October-17-2023"]
[Site "Chess.com"]
[Date "2023.10.17"]
[Round "3"]
[White "ajgreen"]
[Black "sterpfi"]
[Result "1-0"]
[WhiteElo "2391"]
[BlackElo "2168"]
[TimeControl "180+1"]
[EndTime "8:27:37 PDT"]
[Termination "ajgreen won by checkmate"]

1. e4 {[%clk 0:02:57.9]} 1... c6 {[%clk 0:03:00.2]} 2. d4 {[%clk 0:02:57.8]}
2... d5 {[%clk 0:03:01.1]} 3. e5 {[%clk 0:02:58.5]} 3... c5 {[%clk 0:03:00.8]}
4. dxc5 {[%clk 0:02:59.4]} 4... e6 {[%clk 0:03:00.4]} 5. Nf3 {[%clk 0:02:59.7]}
5... Bxc5 {[%clk 0:03:00.1]} 6. a3 {[%clk 0:03:00.4]} 6... f6 {[%clk 0:02:57]}
7. b4 {[%clk 0:03:00.2]} 7... Bb6 {[%clk 0:02:53.6]} 8. Bb2 {[%clk 0:03:00.7]}
8... Nc6 {[%clk 0:02:53.4]} 9. Bb5 {[%clk 0:02:58.3]} 9... Bd7 {[%clk
0:02:50.7]} 10. Bxc6 {[%clk 0:02:57.9]} 10... bxc6 {[%clk 0:02:48.1]} 11. O-O
{[%clk 0:02:58.5]} 11... c5 {[%clk 0:02:41.4]} 12. Nbd2 {[%clk 0:02:55.6]} 12...
cxb4 {[%clk 0:02:29.9]} 13. axb4 {[%clk 0:02:56.5]} 13... Bb5 {[%clk 0:02:30.2]}
14. Re1 {[%clk 0:02:55.9]} 14... Qd7 {[%clk 0:02:23.9]} 15. Nb3 {[%clk
0:02:53.9]} 15... Bc4 {[%clk 0:02:05.5]} 16. Nbd4 {[%clk 0:02:52]} 16... Bxd4
{[%clk 0:01:45.9]} 17. Qxd4 {[%clk 0:02:52.9]} 17... Kf7 {[%clk 0:01:38.1]} 18.
Ra5 {[%clk 0:02:51.7]} 18... Ne7 {[%clk 0:01:21.5]} 19. exf6 {[%clk 0:02:45.7]}
19... Nc6 {[%clk 0:01:21.6]} 20. fxg7 {[%clk 0:02:40.2]} 20... Nxd4 {[%clk
0:01:21.8]} 21. gxh8=Q {[%clk 0:02:31.6]} 21... Nxf3+ {[%clk 0:00:41.9]} 22.
gxf3 {[%clk 0:02:29.2]} 22... Rxh8 {[%clk 0:00:42.8]} 23. Bxh8 {[%clk
0:02:28.7]} 23... Qd8 {[%clk 0:00:36.6]} 24. Rxa7+ {[%clk 0:02:18.6]} 24... Kg6
{[%clk 0:00:24.2]} 25. Be5 {[%clk 0:02:10.1]} 25... Qg5+ {[%clk 0:00:23.1]} 26.
Bg3 {[%clk 0:02:09.9]} 26... Qf5 {[%clk 0:00:20.6]} 27. c3 {[%clk 0:02:03.9]}
27... Qxf3 {[%clk 0:00:19.3]} 28. Rxe6+ {[%clk 0:01:58.8]} 28... Kh5 {[%clk
0:00:12.6]} 29. Rxh7+ {[%clk 0:01:57]} 29... Kg5 {[%clk 0:00:12.7]} 30. Rg7+
{[%clk 0:01:52.4]} 30... Kh5 {[%clk 0:00:12.7]} 31. h4 {[%clk 0:01:40.7]} 31...
Qd1+ {[%clk 0:00:09.9]} 32. Kh2 {[%clk 0:01:40.4]} 32... Qf3 {[%clk 0:00:06.5]}
33. Rg5# {[%clk 0:01:39.9]} 1-0

[Event "Early-Titled-Tuesday-Blitz-October-17-2023"]
[Site "Chess.com"]
[Date "2023.10.17"]
[Round "3"]
[White "Khuslen2008"]
[Black "Ranindu2003"]
[Result "0-1"]
[WhiteElo "2301"]
[BlackElo "2773"]
[TimeControl "180+1"]
[EndTime "8:27:41 PDT"]
[Termination "Ranindu2003 won by resignation"]

1. d4 {[%clk 0:03:00.9]} 1... d5 {[%clk 0:03:00.1]} 2. c4 {[%clk 0:03:00.6]}
2... e6 {[%clk 0:03:00.7]} 3. Nc3 {[%clk 0:03:00.5]} 3... Nf6 {[%clk 0:03:01.4]}
4. cxd5 {[%clk 0:03:00.4]} 4... exd5 {[%clk 0:03:02.3]} 5. Bg5 {[%clk
0:03:00.1]} 5... Bb4 {[%clk 0:03:03]} 6. e3 {[%clk 0:02:58.9]} 6... h6 {[%clk
0:03:03.3]} 7. Bh4 {[%clk 0:02:58.1]} 7... g5 {[%clk 0:03:03.7]} 8. Bg3 {[%clk
0:02:57.7]} 8... Ne4 {[%clk 0:03:04.4]} 9. Rc1 {[%clk 0:02:46.3]} 9... h5 {[%clk
0:03:03.1]} 10. Bd3 {[%clk 0:02:32.8]} 10... h4 {[%clk 0:02:59.4]} 11. Be5
{[%clk 0:01:51]} 11... f6 {[%clk 0:02:57.4]} 12. Bxe4 {[%clk 0:01:50.8]} 12...
dxe4 {[%clk 0:02:56.4]} 13. Qc2 {[%clk 0:01:34.4]} 13... Bf5 {[%clk 0:02:26.9]}
14. Bxf6 {[%clk 0:01:28.7]} 14... Qxf6 {[%clk 0:02:24.2]} 15. Qa4+ {[%clk
0:01:28.6]} 15... Nc6 {[%clk 0:02:20.9]} 16. d5 {[%clk 0:01:28.6]} 16... O-O
{[%clk 0:01:55.2]} 17. dxc6 {[%clk 0:01:27.8]} 17... a5 {[%clk 0:01:48.6]} 18.
cxb7 {[%clk 0:01:26.4]} 18... Rad8 {[%clk 0:01:48]} 19. Ne2 {[%clk 0:01:23.5]}
19... Bd7 {[%clk 0:01:46.7]} 20. Qc2 {[%clk 0:01:17.6]} 20... Qxf2+ {[%clk
0:01:45.6]} 21. Kd1 {[%clk 0:01:03]} 21... Ba4+ {[%clk 0:01:46.5]} 22. Nd4
{[%clk 0:00:58.7]} 22... Bxc2+ {[%clk 0:01:44.3]} 23. Rxc2 {[%clk 0:00:58.6]}
23... Qxe3 {[%clk 0:01:45]} 24. Ne2 {[%clk 0:00:42.9]} 24... c5 {[%clk
0:01:31.1]} 25. b8=Q {[%clk 0:00:40.1]} 25... Rxb8 {[%clk 0:01:30.6]} 26. Nc6
{[%clk 0:00:34.1]} 26... Rbd8+ {[%clk 0:01:29.3]} 27. Nxd8 {[%clk 0:00:18.5]}
27... Rxd8+ {[%clk 0:01:30.2]} 0-1

[Event "Early-Titled-Tuesday-Blitz-October-17-2023"]
[Site "Chess.com"]
[Date "2023.10.17"]
[Round "3"]
[White "andrzej"]
[Black "Aygehovit1992"]
[Result "0-1"]
[WhiteElo "2465"]
[BlackElo "2691"]
[TimeControl "180+1"]
[EndTime "8:28:00 PDT"]
[Termination "Aygehovit1992 won by checkmate"]

1. e4 {[%clk 0:03:00.9]} 1... c5 {[%clk 0:02:57.6]} 2. Nf3 {[%clk 0:03:01.2]}
2... d6 {[%clk 0:02:55.3]} 3. d4 {[%clk 0:03:01.7]} 3... cxd4 {[%clk 0:02:56.2]}
4. Nxd4 {[%clk 0:03:02.3]} 4... Nf6 {[%clk 0:02:56.4]} 5. Nc3 {[%clk 0:03:02.7]}
5... g6 {[%clk 0:02:57.1]} 6. Be3 {[%clk 0:03:02.5]} 6... Nc6 {[%clk 0:02:57.6]}
7. f3 {[%clk 0:02:57.5]} 7... h5 {[%clk 0:02:57.3]} 8. Bc4 {[%clk 0:02:57.3]}
8... Bg7 {[%clk 0:02:52.9]} 9. Qd2 {[%clk 0:02:55.8]} 9... Bd7 {[%clk
0:02:49.3]} 10. O-O {[%clk 0:02:53.5]} 10... Ne5 {[%clk 0:02:45.8]} 11. Bb3
{[%clk 0:02:51.7]} 11... Rc8 {[%clk 0:02:45.1]} 12. Qe2 {[%clk 0:02:51.1]} 12...
h4 {[%clk 0:02:42.1]} 13. Rad1 {[%clk 0:02:45.7]} 13... h3 {[%clk 0:02:40.2]}
14. g3 {[%clk 0:02:45.4]} 14... Qa5 {[%clk 0:02:31.5]} 15. Kh1 {[%clk 0:02:24]}
15... a6 {[%clk 0:02:26.3]} 16. Qd2 {[%clk 0:02:16]} 16... Nc4 {[%clk
0:02:20.6]} 17. Bxc4 {[%clk 0:02:15.9]} 17... Rxc4 {[%clk 0:02:21.5]} 18. Nde2
{[%clk 0:01:56.7]} 18... Bc6 {[%clk 0:01:50.7]} 19. Qe1 {[%clk 0:01:45.5]} 19...
O-O {[%clk 0:01:35.5]} 20. Qf2 {[%clk 0:01:45.1]} 20... Rc8 {[%clk 0:01:33.4]}
21. a3 {[%clk 0:01:30.9]} 21... Qe5 {[%clk 0:01:15.8]} 22. Bd4 {[%clk
0:01:23.8]} 22... Qh5 {[%clk 0:01:08.6]} 23. b3 {[%clk 0:01:19.5]} 23... Nxe4
{[%clk 0:01:05.9]} 24. fxe4 {[%clk 0:01:12.7]} 24... Bxd4 {[%clk 0:01:05.1]} 25.
Qxf7+ {[%clk 0:01:06.6]} 25... Kh8 {[%clk 0:01:05.2]} 26. Rxd4 {[%clk
0:00:53.1]} 26... Bxe4+ {[%clk 0:00:48.9]} 27. Nxe4 {[%clk 0:00:44.2]} 27...
Qxe2 {[%clk 0:00:47.8]} 28. Rxc4 {[%clk 0:00:37.4]} 28... Qg2# {[%clk
0:00:47.5]} 0-1

[Event "Early-Titled-Tuesday-Blitz-October-17-2023"]
[Site "Chess.com"]
[Date "2023.10.17"]
[Round "3"]
[White "Lion_DL"]
[Black "kritipatel"]
[Result "0-1"]
[WhiteElo "2459"]
[BlackElo "2128"]
[TimeControl "180+1"]
[EndTime "8:28:03 PDT"]
[Termination "kritipatel won by checkmate"]

1. d4 {[%clk 0:03:00.9]} 1... d5 {[%clk 0:02:59.9]} 2. c4 {[%clk 0:02:59.3]}
2... e6 {[%clk 0:03:00.2]} 3. Nc3 {[%clk 0:02:58.5]} 3... Nf6 {[%clk 0:03:00.8]}
4. cxd5 {[%clk 0:02:59.2]} 4... exd5 {[%clk 0:03:00.5]} 5. Bg5 {[%clk
0:02:59.8]} 5... Be7 {[%clk 0:03:01]} 6. e3 {[%clk 0:02:59.7]} 6... O-O {[%clk
0:03:01.6]} 7. Qc2 {[%clk 0:02:59.2]} 7... Nbd7 {[%clk 0:02:59.8]} 8. Bd3 {[%clk
0:02:59.8]} 8... c6 {[%clk 0:02:59.8]} 9. Nf3 {[%clk 0:02:59.6]} 9... Re8 {[%clk
0:03:00.3]} 10. O-O {[%clk 0:03:00]} 10... Nf8 {[%clk 0:03:00.1]} 11. h3 {[%clk
0:03:00.7]} 11... h6 {[%clk 0:03:00.5]} 12. Bh4 {[%clk 0:03:00.6]} 12... Ne4
{[%clk 0:03:01.2]} 13. Bxe7 {[%clk 0:03:00.5]} 13... Qxe7 {[%clk 0:03:02.1]} 14.
Nd2 {[%clk 0:02:57.3]} 14... f5 {[%clk 0:03:01.6]} 15. Rab1 {[%clk 0:02:53.3]}
15... Ng6 {[%clk 0:02:55]} 16. b4 {[%clk 0:02:52.1]} 16... Nh4 {[%clk
0:02:49.3]} 17. Ne2 {[%clk 0:02:30.5]} 17... Qg5 {[%clk 0:02:41.6]} 18. Nf4
{[%clk 0:02:29.8]} 18... Nxd2 {[%clk 0:02:40.1]} 19. Rbd1 {[%clk 0:02:07]} 19...
Ne4 {[%clk 0:02:05.8]} 20. Be2 {[%clk 0:01:56.4]} 20... Bd7 {[%clk 0:01:51.8]}
21. a4 {[%clk 0:01:39.8]} 21... Ng6 {[%clk 0:01:50.8]} 22. Nd3 {[%clk
0:01:34.2]} 22... f4 {[%clk 0:01:48.6]} 23. exf4 {[%clk 0:01:30.7]} 23... Nxf4
{[%clk 0:01:46.7]} 24. Nxf4 {[%clk 0:01:31.3]} 24... Qxf4 {[%clk 0:01:47.3]} 25.
b5 {[%clk 0:01:29]} 25... Ng5 {[%clk 0:01:34.1]} 26. Rfe1 {[%clk 0:01:13.2]}
26... Rf8 {[%clk 0:01:27.5]} 27. Bf1 {[%clk 0:01:11.2]} 27... Rac8 {[%clk
0:01:26.3]} 28. Qb2 {[%clk 0:01:00.9]} 28... cxb5 {[%clk 0:01:21.6]} 29. axb5
{[%clk 0:01:01.8]} 29... Bf5 {[%clk 0:01:17.4]} 30. Qb3 {[%clk 0:00:50.5]} 30...
Bxh3 {[%clk 0:01:02.4]} 31. gxh3 {[%clk 0:00:38.8]} 31... Nf3+ {[%clk
0:01:00.9]} 32. Kg2 {[%clk 0:00:32.1]} 32... Qh2# {[%clk 0:00:58.9]} 0-1

[Event "Early-Titled-Tuesday-Blitz-October-17-2023"]
[Site "Chess.com"]
[Date "2023.10.17"]
[Round "3"]
[White "Misticpikachu"]
[Black "Fonsofan"]
[Result "0-1"]
[WhiteElo "2459"]
[BlackElo "2672"]
[TimeControl "180+1"]
[EndTime "8:28:04 PDT"]
[Termination "Fonsofan won by resignation"]

1. c4 {[%clk 0:03:00.9]} 1... b6 {[%clk 0:02:57.6]} 2. Nf3 {[%clk 0:03:00.9]}
2... Bb7 {[%clk 0:02:58.5]} 3. Nc3 {[%clk 0:03:00.5]} 3... Nf6 {[%clk
0:02:58.3]} 4. g3 {[%clk 0:03:00.1]} 4... e6 {[%clk 0:02:57.7]} 5. Bg2 {[%clk
0:03:00.7]} 5... c5 {[%clk 0:02:58]} 6. O-O {[%clk 0:03:01]} 6... d5 {[%clk
0:02:58.7]} 7. cxd5 {[%clk 0:03:00.4]} 7... Nxd5 {[%clk 0:02:59.6]} 8. Nxd5
{[%clk 0:02:59.5]} 8... Bxd5 {[%clk 0:03:00.5]} 9. d4 {[%clk 0:02:59.8]} 9...
Nc6 {[%clk 0:03:00.3]} 10. b3 {[%clk 0:02:44.1]} 10... Be7 {[%clk 0:02:57.1]}
11. Bb2 {[%clk 0:02:43.9]} 11... Bf6 {[%clk 0:02:57.6]} 12. Qd2 {[%clk
0:01:51.4]} 12... cxd4 {[%clk 0:02:18.8]} 13. Rfd1 {[%clk 0:01:49]} 13... e5
{[%clk 0:01:50.6]} 14. e3 {[%clk 0:01:46.4]} 14... O-O {[%clk 0:01:44.3]} 15.
exd4 {[%clk 0:01:46.3]} 15... exd4 {[%clk 0:01:39.6]} 16. Rac1 {[%clk
0:01:28.3]} 16... Rc8 {[%clk 0:01:39.6]} 17. Bxd4 {[%clk 0:00:35.8]} 17... Bxf3
{[%clk 0:01:29.8]} 18. Bxf6 {[%clk 0:00:32.7]} 18... Qxd2 {[%clk 0:01:27.4]} 19.
Rxd2 {[%clk 0:00:30.1]} 19... Bxg2 {[%clk 0:01:28]} 20. Bxg7 {[%clk 0:00:27.9]}
20... Kxg7 {[%clk 0:01:20.2]} 21. Kxg2 {[%clk 0:00:28.2]} 21... Rcd8 {[%clk
0:01:13.5]} 22. Re2 {[%clk 0:00:26.1]} 22... Nb4 {[%clk 0:01:09.7]} 23. Rc7
{[%clk 0:00:26]} 23... a5 {[%clk 0:01:06.5]} 24. Rb7 {[%clk 0:00:22.9]} 24...
Rd6 {[%clk 0:01:05.7]} 25. a3 {[%clk 0:00:22.4]} 25... Nd3 {[%clk 0:01:02.9]}
26. Re4 {[%clk 0:00:19]} 26... Rf6 {[%clk 0:00:57.8]} 27. f4 {[%clk 0:00:18.9]}
27... Nc5 {[%clk 0:00:56.9]} 0-1

[Event "Early-Titled-Tuesday-Blitz-October-17-2023"]
[Site "Chess.com"]
[Date "2023.10.17"]
[Round "3"]
[White "MasterKroket"]
[Black "Zurability"]
[Result "1-0"]
[WhiteElo "2553"]
[BlackElo "2739"]
[TimeControl "180+1"]
[EndTime "8:28:07 PDT"]
[Termination "MasterKroket won by resignation"]

1. e4 {[%clk 0:03:00.9]} 1... c5 {[%clk 0:03:00.2]} 2. Nf3 {[%clk 0:03:00.8]}
2... d6 {[%clk 0:03:00.7]} 3. d4 {[%clk 0:03:01.3]} 3... cxd4 {[%clk 0:03:01.6]}
4. Nxd4 {[%clk 0:03:01.7]} 4... Nf6 {[%clk 0:03:02.1]} 5. Nc3 {[%clk 0:03:02.2]}
5... g6 {[%clk 0:03:02.5]} 6. Be3 {[%clk 0:03:01.3]} 6... a6 {[%clk 0:03:02.7]}
7. f3 {[%clk 0:03:01.5]} 7... Nbd7 {[%clk 0:03:03]} 8. Qd2 {[%clk 0:03:01.9]}
8... Bg7 {[%clk 0:03:03.1]} 9. O-O-O {[%clk 0:02:58.3]} 9... b5 {[%clk
0:03:02.8]} 10. Bh6 {[%clk 0:02:54.4]} 10... Bxh6 {[%clk 0:02:57.7]} 11. Qxh6
{[%clk 0:02:54.2]} 11... Bb7 {[%clk 0:02:58.3]} 12. g4 {[%clk 0:02:42.4]} 12...
Rc8 {[%clk 0:02:57.5]} 13. Nce2 {[%clk 0:02:33.2]} 13... Ne5 {[%clk 0:02:47.4]}
14. g5 {[%clk 0:02:24.4]} 14... Nh5 {[%clk 0:02:32.4]} 15. Ng3 {[%clk
0:02:22.2]} 15... Nf4 {[%clk 0:02:26.7]} 16. Qg7 {[%clk 0:02:22]} 16... Rf8
{[%clk 0:01:52.2]} 17. Nge2 {[%clk 0:02:05.3]} 17... Ne6 {[%clk 0:01:41.3]} 18.
Nxe6 {[%clk 0:02:04.9]} 18... fxe6 {[%clk 0:01:41.6]} 19. Nd4 {[%clk 0:01:54.8]}
19... Rf7 {[%clk 0:00:33.6]} 20. Qg8+ {[%clk 0:01:49.8]} 20... Kd7 {[%clk
0:00:33.3]} 21. Qxd8+ {[%clk 0:01:40.8]} 21... Rxd8 {[%clk 0:00:34.2]} 22. Bh3
{[%clk 0:01:40.2]} 22... Rxf3 {[%clk 0:00:33.6]} 23. Bxe6+ {[%clk 0:01:37.2]}
23... Kc7 {[%clk 0:00:33.5]} 24. Bd5 {[%clk 0:01:36.5]} 24... Bc8 {[%clk
0:00:18.3]} 25. Nxf3 {[%clk 0:01:34.9]} 25... Nxf3 {[%clk 0:00:19.2]} 26. h4
{[%clk 0:01:27.3]} 26... Bg4 {[%clk 0:00:19.3]} 27. Rdf1 {[%clk 0:01:24.6]}
27... e6 {[%clk 0:00:18.8]} 28. Bb3 {[%clk 0:01:23.8]} 28... Rf8 {[%clk
0:00:18.8]} 29. Rf2 {[%clk 0:01:20.9]} 29... Rf4 {[%clk 0:00:17]} 30. Rhf1
{[%clk 0:01:18.6]} 30... Kd7 {[%clk 0:00:13.1]} 31. c3 {[%clk 0:01:19]} 31... e5
{[%clk 0:00:10.2]} 32. Bd1 {[%clk 0:01:17.8]} 32... Nh2 {[%clk 0:00:04.8]} 33.
Rxf4 {[%clk 0:01:17.1]} 33... exf4 {[%clk 0:00:05.5]} 34. Rxf4 {[%clk
0:01:17.1]} 34... Bxd1 {[%clk 0:00:04.8]} 35. Kxd1 {[%clk 0:01:15.4]} 35... Ke6
{[%clk 0:00:05.7]} 1-0

[Event "Early-Titled-Tuesday-Blitz-October-17-2023"]
[Site "Chess.com"]
[Date "2023.10.17"]
[Round "3"]
[White "ChainedDowntohell"]
[Black "YouJustFoundYourGodfather"]
[Result "1-0"]
[WhiteElo "2464"]
[BlackElo "2602"]
[TimeControl "180+1"]
[EndTime "8:28:07 PDT"]
[Termination "ChainedDowntohell won by resignation"]

1. d4 {[%clk 0:03:00.9]} 1... g6 {[%clk 0:02:20.2]} 2. c4 {[%clk 0:02:59.8]}
2... Bg7 {[%clk 0:02:20.5]} 3. Nc3 {[%clk 0:02:59.9]} 3... d6 {[%clk 0:02:20.8]}
4. Nf3 {[%clk 0:02:59.6]} 4... a6 {[%clk 0:02:21.3]} 5. e4 {[%clk 0:02:58.9]}
5... c6 {[%clk 0:02:18.7]} 6. h3 {[%clk 0:02:57]} 6... b5 {[%clk 0:02:19]} 7.
Be3 {[%clk 0:02:54.8]} 7... bxc4 {[%clk 0:02:18.3]} 8. Bxc4 {[%clk 0:02:53.9]}
8... Nf6 {[%clk 0:02:17.8]} 9. Be2 {[%clk 0:02:49.7]} 9... O-O {[%clk
0:02:15.7]} 10. Qc2 {[%clk 0:02:49.5]} 10... Nbd7 {[%clk 0:02:15.2]} 11. O-O
{[%clk 0:02:44.9]} 11... e5 {[%clk 0:02:13.7]} 12. dxe5 {[%clk 0:02:43.1]} 12...
dxe5 {[%clk 0:02:14.6]} 13. Na4 {[%clk 0:02:39.8]} 13... Rb8 {[%clk 0:02:13.2]}
14. b3 {[%clk 0:02:38.1]} 14... Bb7 {[%clk 0:02:11.3]} 15. Nc5 {[%clk
0:02:31.9]} 15... Nxc5 {[%clk 0:02:08.8]} 16. Bxc5 {[%clk 0:02:31.8]} 16... Re8
{[%clk 0:02:09.7]} 17. Rfd1 {[%clk 0:02:30]} 17... Nd7 {[%clk 0:01:59.9]} 18.
Bc4 {[%clk 0:02:09.2]} 18... Bf6 {[%clk 0:01:49.7]} 19. Rd6 {[%clk 0:00:59.7]}
19... Qc8 {[%clk 0:01:29.7]} 20. Rad1 {[%clk 0:00:58.1]} 20... Rd8 {[%clk
0:01:14.8]} 21. Bxf7+ {[%clk 0:00:35.1]} 21... Kxf7 {[%clk 0:01:13]} 22. Qc4+
{[%clk 0:00:34]} 22... Kg7 {[%clk 0:01:12.4]} 23. Qe6 {[%clk 0:00:31.5]} 23...
Kh6 {[%clk 0:00:54.1]} 24. Be3+ {[%clk 0:00:26.1]} 24... Kg7 {[%clk 0:00:42.7]}
25. Rxd7+ {[%clk 0:00:25.5]} 25... Rxd7 {[%clk 0:00:43.6]} 26. Rxd7+ {[%clk
0:00:25.7]} 1-0

[Event "Early-Titled-Tuesday-Blitz-October-17-2023"]
[Site "Chess.com"]
[Date "2023.10.17"]
[Round "3"]
[White "MMAHDI2013"]
[Black "zimmm36"]
[Result "0-1"]
[WhiteElo "2479"]
[BlackElo "2716"]
[TimeControl "180+1"]
[EndTime "8:28:08 PDT"]
[Termination "zimmm36 won by resignation"]

1. c4 {[%clk 0:03:00.9]} 1... e5 {[%clk 0:02:59.6]} 2. Nc3 {[%clk 0:03:00.1]}
2... Bb4 {[%clk 0:03:00.1]} 3. Nd5 {[%clk 0:02:52.7]} 3... Be7 {[%clk 0:03:00]}
4. Nf3 {[%clk 0:02:48.5]} 4... d6 {[%clk 0:03:00.2]} 5. b3 {[%clk 0:02:02.3]}
5... Nf6 {[%clk 0:02:58.7]} 6. Nxe7 {[%clk 0:02:01.2]} 6... Qxe7 {[%clk
0:02:59.6]} 7. Bb2 {[%clk 0:02:00.7]} 7... Bg4 {[%clk 0:02:57.8]} 8. g3 {[%clk
0:01:58.1]} 8... Bxf3 {[%clk 0:02:57.9]} 9. exf3 {[%clk 0:01:59]} 9... Nc6
{[%clk 0:02:58.5]} 10. Bg2 {[%clk 0:01:58.7]} 10... Nd4 {[%clk 0:02:55.7]} 11.
Bxd4 {[%clk 0:01:38.6]} 11... exd4+ {[%clk 0:02:54.6]} 12. Qe2 {[%clk
0:01:39.3]} 12... Qxe2+ {[%clk 0:02:53.7]} 13. Kxe2 {[%clk 0:01:40.2]} 13... Kd7
{[%clk 0:02:54]} 14. Kd3 {[%clk 0:01:29.5]} 14... c5 {[%clk 0:02:52.9]} 15. f4
{[%clk 0:01:29.7]} 15... Rab8 {[%clk 0:02:52.5]} 16. a4 {[%clk 0:01:10.7]} 16...
d5 {[%clk 0:02:48.6]} 17. cxd5 {[%clk 0:01:03]} 17... Kd6 {[%clk 0:02:48.7]} 18.
b4 {[%clk 0:00:45.4]} 18... cxb4 {[%clk 0:02:45.9]} 19. Kxd4 {[%clk 0:00:44]}
19... Rbc8 {[%clk 0:02:45]} 20. Rhc1 {[%clk 0:00:42.5]} 20... a5 {[%clk
0:02:44.9]} 21. Rab1 {[%clk 0:00:33.9]} 21... Nd7 {[%clk 0:02:43.9]} 22. Bh3
{[%clk 0:00:32.7]} 22... Rxc1 {[%clk 0:02:38.3]} 23. Rxc1 {[%clk 0:00:32.3]}
23... Nb6 {[%clk 0:02:38.4]} 24. Ra1 {[%clk 0:00:28.3]} 24... g6 {[%clk
0:02:33.9]} 25. Bg2 {[%clk 0:00:25.2]} 25... Rc8 {[%clk 0:02:32.9]} 26. Be4
{[%clk 0:00:25.7]} 26... Rc4+ {[%clk 0:02:32.7]} 27. Kd3 {[%clk 0:00:26.2]}
27... f5 {[%clk 0:02:32.5]} 28. Bf3 {[%clk 0:00:26]} 28... Rc5 {[%clk
0:02:31.4]} 29. Re1 {[%clk 0:00:23.1]} 29... Nxd5 {[%clk 0:02:31.5]} 30. Bxd5
{[%clk 0:00:20.7]} 30... Rxd5+ {[%clk 0:02:31.7]} 31. Kc2 {[%clk 0:00:21.4]}
31... b5 {[%clk 0:02:29.1]} 32. axb5 {[%clk 0:00:18.6]} 32... Rxb5 {[%clk
0:02:30]} 33. Re8 {[%clk 0:00:15.7]} 33... b3+ {[%clk 0:02:29]} 34. Kb2 {[%clk
0:00:15.7]} 34... a4 {[%clk 0:02:27.8]} 35. Ra8 {[%clk 0:00:16]} 35... Rb4
{[%clk 0:02:28.1]} 36. Ra5 {[%clk 0:00:14.7]} 36... Ke6 {[%clk 0:02:26.4]} 37.
h3 {[%clk 0:00:13.1]} 37... Kf7 {[%clk 0:02:26.2]} 38. h4 {[%clk 0:00:13.3]}
38... Kg7 {[%clk 0:02:26.2]} 39. f3 {[%clk 0:00:13.6]} 39... Kh6 {[%clk
0:02:26.6]} 40. Ra7 {[%clk 0:00:09.6]} 40... Rc4 {[%clk 0:02:26.3]} 41. Ka3
{[%clk 0:00:05.6]} 41... Rd4 {[%clk 0:02:23.1]} 42. Rb7 {[%clk 0:00:04.6]} 42...
Rxd2 {[%clk 0:02:17]} 43. Kxa4 {[%clk 0:00:04.3]} 43... b2 {[%clk 0:02:17.3]}
44. Ka3 {[%clk 0:00:04.3]} 44... Rd3+ {[%clk 0:02:17.3]} 45. Kxb2 {[%clk
0:00:04.7]} 45... Rxf3 {[%clk 0:02:17.6]} 46. Kc2 {[%clk 0:00:01.8]} 46... Rxg3
{[%clk 0:02:18]} 47. Kd2 {[%clk 0:00:02.5]} 47... Rg4 {[%clk 0:02:18.3]} 48. Ke3
{[%clk 0:00:02.8]} 48... Rxh4 {[%clk 0:02:18.4]} 49. Kf3 {[%clk 0:00:02.8]}
49... Rh3+ {[%clk 0:02:18.7]} 50. Kf2 {[%clk 0:00:02.5]} 50... Ra3 {[%clk
0:02:19.2]} 51. Kg2 {[%clk 0:00:02.3]} 51... Kh5 {[%clk 0:02:17.3]} 52. Rxh7+
{[%clk 0:00:01.4]} 52... Kg4 {[%clk 0:02:17.8]} 53. Rg7 {[%clk 0:00:02.2]} 53...
Ra6 {[%clk 0:02:17.2]} 54. Kf2 {[%clk 0:00:02.5]} 54... Kxf4 {[%clk 0:02:17.6]}
55. Kg2 {[%clk 0:00:02.4]} 55... g5 {[%clk 0:02:18]} 0-1